[Event "106th British-ch 2019"]
[Site "Torquay"]
[Date "2019.07.31"]
[Round "5.26"]
[White "Donaldson, Thomas"]
[Black "Starley, Robert"]
[Result "0-1"]
[ECO "E41"]
[WhiteElo "2065"]
[BlackElo "2058"]
[Annotator "NA"]
[PlyCount "74"]
[EventDate "2019.07.27"]
[EventType "swiss"]
[EventCountry "GBR"]
[SourceTitle "playchess.com"]
[Source "ChessBase"]
[SourceQuality "1"]
[TimeControl "40/5400+30:1800+30"]

1. d4 {[%emt 0:00:00]} Nf6 {[%emt 0:00:00]} 2. c4 {[%emt 0:00:00]} e6 {[%emt 0:00:00]} 3. Nc3 {[%emt 0:00:00]} Bb4 {[%emt 0:00:00]} 4. e3 {[%emt 0:00:00]} c5 {[%emt 0:00:00]} 5. Bd3 {[%emt 0:00:06]} Nc6 {[%emt 0:00:00]} 6. Nf3 {[%emt 0:00:12]} Bxc3+ {[%emt 0:00:13]} 7. bxc3 {[%emt 0:00:08]} d6 {[%emt 0:00:07]} 8. O-O {[%emt 0:00:24]} e5 {[%emt 0:00:24]} 9. d5 {[%emt 0:00:08]} Ne7 {[%emt 0:00:36]} 10. e4 {[%emt 0:00:07]} O-O {[%emt 0:00:20]} 11. Rb1 {[%emt 0:00:13]} Ng6 {[%emt 0:01:50]} 12. Ne1 {[%emt 0:02:48]} Re8 {[%emt 0:04:04]} 13. g3 {[%emt 0:01:15]} Bh3 {[%emt 0:03:35]} 14. Ng2 {[%emt 0:00:28]} b6 {[%emt 0:01:24]} 15. Qc2 {[%emt 0:02:37]} Qd7 {[%emt 0:01:42]} 16. Bg5 {[%emt 0:07:22]} Nf4 {[%emt 0:36:42]} 17. Nxf4 {[%emt 0:43:26]} Bxf1 {[%emt 0:04:10]} 18. Rxf1 {[%emt 0:00:16]} exf4 {[%emt 0:00:39]} 19. Bxf4 {[%emt 0:01:00]} Ng4 {[%emt 0:02:43]} 20. Bc1 {[%emt 0:01:32]} Ne5 {[%emt 0:02:23]} 21. Be2 {[%emt 0:00:08]} f6 {[%emt 0:02:38]} 22. f4 {[%emt 0:09:07]} Nf7 {[%emt 0:02:30]} 23. Qd1 {[%emt 0:02:50]} Rxe4 {[%emt 0:02:35]} 24. Bd3 {[%emt 0:06:45]} Re7 {[%emt 0:01:22]} 25. Qc2 {[%emt 0:00:17]} h6 {[%emt 0:03:10]} 26. Qd1 {[%emt 0:03:25]} Rae8 {[%emt 0:01:23]} 27. Qh5 {[%emt 0:02:25]} Re1 {[%emt 0:04:12]} 28. Bd2 {[%emt 0:00:31]} Rxf1+ {[%emt 0:00:34]} 29. Kxf1 {[%emt 0:00:08]} Qa4 {[%emt 0:01:19]} 30. Bg6 {[%emt 0:02:04]} Qxc4+ {[%emt 0:00:25]} 31. Kg1 {[%emt 0:00:26]} Re7 {[%emt 0:00:43]} 32. Qf5 {[%emt 0:00:59]} Qe2 {[%emt 0:00:42]} 33. c4 {[%emt 0:01:10]} Qd1+ {[%emt 0:01:21]} 34. Kg2 {[%emt 0:00:14]} Qxd2+ {[%emt 0:00:15]} 35. Kh3 {[%emt 0:00:07]} Qe2 {[%emt 0:00:36]} 36. Bh7+ {[%emt 0:00:51]} Kf8 {[%emt 0:00:27]} 37. Bg6 {[%emt 0:00:11]} Re8 {[%emt 0:02:19]} 0-1

[Event "106th British-ch 2019"]
[Site "Torquay"]
[Date "2019.07.31"]
[Round "5.27"]
[White "Jaufarally, Nadia"]
[Black "Kahn, Tito"]
[Result "1-0"]
[ECO "B42"]
[WhiteElo "1944"]
[BlackElo "1921"]
[Annotator "NA"]
[PlyCount "81"]
[EventDate "2019.07.27"]
[EventType "swiss"]
[EventCountry "GBR"]
[SourceTitle "playchess.com"]
[Source "ChessBase"]
[SourceQuality "1"]
[TimeControl "40/5400+30:1800+30"]

1. e4 {[%emt 0:00:00]} c5 {[%emt 0:00:00]} 2. Nf3 {[%emt 0:00:00]} e6 {[%emt 0:00:04]} 3. d4 {[%emt 0:00:00]} cxd4 {[%emt 0:00:02]} 4. Nxd4 {[%emt 0:00:00]} a6 {[%emt 0:00:06]} 5. Bd3 {[%emt 0:00:16]} Nc6 {[%emt 0:01:15]} 6. Nxc6 {[%emt 0:01:19]} dxc6 {[%emt 0:00:07]} 7. O-O {[%emt 0:01:14]} e5 {[%emt 0:01:39]} 8. Nd2 {[%emt 0:06:54]} Nf6 {[%emt 0:19:13]} 9. Nc4 {[%emt 0:03:35]} Qc7 {[%emt 0:00:26]} 10. Be3 {[%emt 0:03:01]} Nd7 {[%emt 0:17:15]} 11. a4 {[%emt 0:11:48]} b5 {[%emt 0:00:06]} 12. axb5 {[%emt 0:02:08]} cxb5 {[%emt 0:00:08]} 13. Nd2 {[%emt 0:02:00]} Rb8 {[%emt 0:01:51]} 14. Nb3 {[%emt 0:01:46]} Be7 {[%emt 0:04:06]} 15. Kh1 {[%emt 0:01:57]} O-O {[%emt 0:00:08]} 16. Qe2 {[%emt 0:10:21]} Nc5 {[%emt 0:04:43]} 17. Nxc5 {[%emt 0:03:37]} Bxc5 {[%emt 0:00:05]} 18. Bd2 {[%emt 0:01:18]} Bb7 {[%emt 0:03:43]} 19. f4 {[%emt 0:02:07]} Bd6 {[%emt 0:04:23]} 20. f5 {[%emt 0:01:32]} f6 {[%emt 0:03:31]} 21. Rf3 {[%emt 0:05:49]} Bc5 {[%emt 0:01:50]} 22. Rh3 {[%emt 0:07:32]} Rf7 {[%emt 0:06:13]} 23. Qh5 {[%emt 0:02:53]} h6 {[%emt 0:00:41]} 24. Qg6 {[%emt 0:10:26]} Kf8 {[%emt 0:00:46]} 25. Qh7 {[%emt 0:06:24]} Ke7 {[%emt 0:03:32]} 26. Rg3 {[%emt 0:03:11]} Kd6 {[%emt 0:00:55]} 27. Ba5 {[%emt 0:04:27]} Qe7 {[%emt 0:01:00]} 28. c4 {[%emt 0:02:44]} Bc8 {[%emt 0:08:46]} 29. Rd1 {[%emt 0:04:03]} b4 {[%emt 0:04:18]} 30. Bc2+ {[%emt 0:02:02]} Kc6 {[%emt 0:00:01]} 31. Ba4+ {[%emt 0:00:11]} Kb7 {[%emt 0:00:01]} 32. Bd8 {[%emt 0:00:48]} Qf8 {[%emt 0:00:36]} 33. Ba5 {[%emt 0:00:25]} Ka7 {[%emt 0:03:45]} 34. Rd8 {[%emt 0:00:26]} Qe7 {[%emt 0:00:40]} 35. Qg8 {[%emt 0:00:42]} Qb7 {[%emt 0:01:12]} 36. Bc6 {[%emt 0:00:18]} Qxc6 {[%emt 0:03:12]} 37. Qxf7+ {[%emt 0:00:06]} Bb7 {[%emt 0:03:21]} 38. Rxb8 {[%emt 0:00:33]} Kxb8 {[%emt 0:00:54]} 39. Rxg7 {[%emt 0:00:46]} Qxe4 {[%emt 0:00:38]} 40. Qc7+ {[%emt 0:00:07]} Ka8 {[%emt 0:02:47]} 41. Rg8+ {[%emt 0:30:09]} 1-0

[Event "106th British-ch 2019"]
[Site "Torquay"]
[Date "2019.08.01"]
[Round "6.2"]
[White "Wadsworth, Matthew J"]
[Black "Howell, David W L"]
[Result "0-1"]
[ECO "A37"]
[WhiteElo "2418"]
[BlackElo "2697"]
[Annotator "RC"]
[PlyCount "74"]
[EventDate "2019.07.27"]
[EventType "swiss"]
[EventCountry "GBR"]
[SourceTitle "playchess.com"]
[Source "ChessBase"]
[SourceQuality "1"]
[TimeControl "40/5400+30:1800+30"]

1. c4 {[%emt 0:00:00]} g6 {[%emt 0:04:45]} 2. g3 {[%emt 0:00:00]} Bg7 {[%emt 0:00:34]} 3. Bg2 {[%emt 0:00:16]} c5 {[%emt 0:00:49]} 4. Nc3 {[%emt 0:00:30]} Nc6 {[%emt 0:00:13]} 5. Nf3 {[%emt 0:00:15]} e6 {[%emt 0:00:15]} 6. d3 {[%emt 0:01:35]} Nge7 {[%emt 0:00:33]} 7. Bg5 {[%emt 0:00:15]} h6 {[%emt 0:01:50]} 8. Bd2 {[%emt 0:00:22]} d5 {[%emt 0:00:08]} 9. Qc1 {[%emt 0:06:10]} b6 {[%emt 0:00:08]} 10. Rb1 {[%emt 0:06:50]} Bb7 {[%emt 0:03:52]} 11. O-O {[%emt 0:02:52]} Rc8 {[%emt 0:00:06]} 12. a3 {[%emt 0:07:22]} Nd4 {[%emt 0:03:23]} 13. cxd5 {[%emt 0:06:25]} Bxd5 {[%emt 0:12:14]} 14. Ne1 {[%emt 0:09:38]} Ba2 {[%emt 0:02:22]} 15. Ra1 {[%emt 0:00:09]} Bb3 {[%emt 0:06:08]} 16. e3 {[%emt 0:04:38]} Ndc6 {[%emt 0:02:30]} 17. a4 {[%emt 0:05:41]} e5 {[%emt 0:01:12]} 18. Ne2 {[%emt 0:05:28]} O-O {[%emt 0:07:08]} 19. Ra3 {[%emt 0:04:26]} Be6 {[%emt 0:00:20]} 20. a5 {[%emt 0:10:48]} b5 {[%emt 0:07:08]} 21. Qxc5 {[%emt 0:02:14]} Nd4 {[%emt 0:00:55]} 22. exd4 {[%emt 0:00:02]} Rxc5 {[%emt 0:00:10]} 23. dxc5 {[%emt 0:00:03]} Bd5 {[%emt 0:05:52]} 24. b4 {[%emt 0:04:43]} a6 {[%emt 0:02:53]} 25. Bxd5 {[%emt 0:11:15]} Qxd5 {[%emt 0:01:07]} 26. Ng2 {[%emt 0:01:10]} Qf3 {[%emt 0:03:53]} 27. Re1 {[%emt 0:00:47]} Nc6 {[%emt 0:01:32]} 28. Nh4 {[%emt 0:02:34]} Qd5 {[%emt 0:02:25]} 29. d4 {[%emt 0:01:19]} g5 {[%emt 0:13:00]} 30. Nf3 {[%emt 0:01:23]} exd4 {[%emt 0:00:56]} 31. Nc1 {[%emt 0:00:18]} f6 {[%emt 0:05:07]} 32. h4 {[%emt 0:01:47]} Kh7 {[%emt 0:01:04]} 33. Nh2 {[%emt 0:01:16]} Ne5 {[%emt 0:01:22]} 34. Nd3 {[%emt 0:00:42]} Nc4 {[%emt 0:00:22]} 35. Ra2 {[%emt 0:00:25]} Ne3 {[%emt 0:00:45]} 36. Bxe3 {[%emt 0:01:07]} Qxa2 {[%emt 0:00:08]} 37. Bxd4 {[%emt 0:00:12]} Qc4 {[%emt 0:00:20]} 0-1

[Event "106th British-ch 2019"]
[Site "Torquay"]
[Date "2019.08.01"]
[Round "6.3"]
[White "Gordon, Stephen J"]
[Black "Williams, Simon K"]
[Result "1-0"]
[ECO "A49"]
[WhiteElo "2516"]
[BlackElo "2468"]
[Annotator "ChessBase"]
[PlyCount "61"]
[EventDate "2019.07.27"]
[EventType "swiss"]
[EventCountry "GBR"]
[SourceTitle "playchess.com"]
[Source "ChessBase"]
[SourceQuality "1"]
[TimeControl "40/5400+30:1800+30"]

1. Nf3 {[%emt 0:00:00]} Nf6 {[%emt 0:00:15]} 2. g3 {[%emt 0:00:07]} g6 {[%emt 0:01:18]} 3. b3 {[%emt 0:00:46]} Bg7 {[%emt 0:00:42]} 4. Bb2 {[%emt 0:00:02]} O-O {[%emt 0:01:30]} 5. Bg2 {[%emt 0:00:03]} d6 {[%emt 0:15:23]} 6. d4 {[%emt 0:00:05]} c6 {[%emt 0:03:29]} 7. O-O {[%emt 0:05:09]} Qa5 {[%emt 0:02:22]} 8. h3 {[%emt 0:03:18]} Qh5 {[%emt 0:02:31]} 9. g4 {[%emt 0:01:19]} Bxg4 {[%emt 0:02:23]} 10. hxg4 {[%emt 0:00:05]} Nxg4 {[%emt 0:00:03]} 11. Nbd2 {[%emt 0:04:00]} f5 {[%emt 0:00:33]} 12. Re1 {[%emt 0:02:34]} Nd7 {[%emt 0:21:56]} 13. Nf1 {[%emt 0:02:31]} Ndf6 {[%emt 0:03:42]} 14. e3 {[%emt 0:08:50]} Ne4 {[%emt 0:03:17]} 15. Re2 {[%emt 0:00:24]} g5 {[%emt 0:07:32]} 16. N3d2 {[%emt 0:04:29]} Nef6 {[%emt 0:01:39]} 17. e4 {[%emt 0:03:11]} fxe4 {[%emt 0:02:51]} 18. Nxe4 {[%emt 0:00:38]} Nd5 {[%emt 0:00:25]} 19. Neg3 {[%emt 0:03:38]} Qh4 {[%emt 0:01:01]} 20. Bxd5+ {[%emt 0:02:46]} cxd5 {[%emt 0:00:05]} 21. Qd3 {[%emt 0:02:51]} Nh6 {[%emt 0:13:07]} 22. Rxe7 {[%emt 0:02:34]} Rf4 {[%emt 0:01:50]} 23. Qb5 {[%emt 0:06:53]} Raf8 {[%emt 0:00:12]} 24. Qxb7 {[%emt 0:12:03]} Nf5 {[%emt 0:01:19]} 25. Qxd5+ {[%emt 0:01:43]} Kh8 {[%emt 0:00:05]} 26. Re4 {[%emt 0:09:14]} Qg4 {[%emt 0:09:43]} 27. Nh2 {[%emt 0:04:53]} Qh3 {[%emt 0:01:18]} 28. Rxf4 {[%emt 0:00:35]} gxf4 {[%emt 0:00:24]} 29. Nxf5 {[%emt 0:00:04]} Rxf5 {[%emt 0:01:14]} 30. Qf3 {[%emt 0:00:15]} Qh4 {[%emt 0:00:17]} 31. Kh1 {[%emt 0:03:02]} 1-0

[Event "106th British-ch 2019"]
[Site "Torquay"]
[Date "2019.08.01"]
[Round "6.4"]
[White "Haria, Ravi"]
[Black "Pert, Richard G"]
[Result "1/2-1/2"]
[ECO "C06"]
[WhiteElo "2430"]
[BlackElo "2430"]
[Annotator "NA"]
[PlyCount "88"]
[EventDate "2019.07.27"]
[EventType "swiss"]
[EventCountry "GBR"]
[SourceTitle "playchess.com"]
[Source "ChessBase"]
[SourceQuality "1"]
[TimeControl "40/5400+30:1800+30"]

1. e4 {[%emt 0:00:00]} e6 {[%emt 0:00:00]} 2. d4 {[%emt 0:00:00]} d5 {[%emt 0:00:00]} 3. Nd2 {[%emt 0:00:00]} Be7 {[%emt 0:00:00]} 4. Ngf3 {[%emt 0:00:19]} Nf6 {[%emt 0:00:24]} 5. e5 {[%emt 0:00:04]} Nfd7 {[%emt 0:00:06]} 6. Bd3 {[%emt 0:00:04]} c5 {[%emt 0:00:10]} 7. O-O {[%emt 0:00:29]} Nc6 {[%emt 0:04:48]} 8. Re1 {[%emt 0:00:32]} O-O {[%emt 0:01:47]} 9. c3 {[%emt 0:08:01]} f6 {[%emt 0:00:41]} 10. exf6 {[%emt 0:07:49]} Nxf6 {[%emt 0:00:14]} 11. Nf1 {[%emt 0:00:57]} cxd4 {[%emt 0:01:45]} 12. cxd4 {[%emt 0:00:22]} Qb6 {[%emt 0:00:37]} 13. Ng3 {[%emt 0:08:31]} Ng4 {[%emt 0:01:57]} 14. Re2 {[%emt 0:41:09]} Bd6 {[%emt 0:42:10]} 15. Bc2 {[%emt 0:14:39]} g6 {[%emt 0:03:15]} 16. Nf1 {[%emt 0:02:32]} Bd7 {[%emt 0:03:07]} 17. h3 {[%emt 0:00:28]} Rxf3 {[%emt 0:00:16]} 18. hxg4 {[%emt 0:04:42]} Rf7 {[%emt 0:01:13]} 19. Be3 {[%emt 0:00:39]} Nb4 {[%emt 0:03:58]} 20. Bb3 {[%emt 0:03:06]} Bb5 {[%emt 0:01:28]} 21. Rd2 {[%emt 0:00:30]} a5 {[%emt 0:01:47]} 22. a3 {[%emt 0:01:15]} Nc6 {[%emt 0:00:08]} 23. Nh2 {[%emt 0:00:31]} Bxh2+ {[%emt 0:05:50]} 24. Kxh2 {[%emt 0:00:01]} a4 {[%emt 0:00:06]} 25. Ba2 {[%emt 0:02:12]} Na5 {[%emt 0:00:15]} 26. Rc1 {[%emt 0:00:23]} Bc4 {[%emt 0:00:50]} 27. Bb1 {[%emt 0:01:02]} Nb3 {[%emt 0:00:27]} 28. g3 {[%emt 0:02:44]} Raf8 {[%emt 0:03:51]} 29. Rcc2 {[%emt 0:00:44]} Rf3 {[%emt 0:02:05]} 30. Kg2 {[%emt 0:00:19]} Qb5 {[%emt 0:08:31]} 31. Rc3 {[%emt 0:00:28]} Nxd2 {[%emt 0:00:48]} 32. Qxd2 {[%emt 0:00:05]} Bf1+ {[%emt 0:00:56]} 33. Kg1 {[%emt 0:00:42]} Bh3 {[%emt 0:00:34]} 34. Bd3 {[%emt 0:00:17]} Qd7 {[%emt 0:02:32]} 35. Be2 {[%emt 0:00:31]} Qf7 {[%emt 0:03:08]} 36. Bf4 {[%emt 0:01:14]} Rxc3 {[%emt 0:00:51]} 37. Qxc3 {[%emt 0:00:18]} h5 {[%emt 0:01:06]} 38. gxh5 {[%emt 0:00:32]} gxh5 {[%emt 0:00:06]} 39. Qe3 {[%emt 0:00:39]} Qg6 {[%emt 0:01:15]} 40. Kh2 {[%emt 0:00:26]} Bg4 {[%emt 0:01:32]} 41. f3 {[%emt 0:06:20]} Bf5 {[%emt 0:00:16]} 42. Bb5 {[%emt 0:00:06]} Bc2 {[%emt 0:10:38]} 43. Bd7 {[%emt 0:02:13]} Kh7 {[%emt 0:01:14]} 44. Qxe6 {[%emt 0:08:18]} Qxe6 {[%emt 0:11:22]} 1/2-1/2

[Event "106th British-ch 2019"]
[Site "Torquay"]
[Date "2019.08.01"]
[Round "6.5"]
[White "Eggleston, David J"]
[Black "Palliser, Richard Jd"]
[Result "0-1"]
[ECO "B81"]
[WhiteElo "2399"]
[BlackElo "2399"]
[Annotator "ChessBase"]
[PlyCount "126"]
[EventDate "2019.07.27"]
[EventType "swiss"]
[EventCountry "GBR"]
[SourceTitle "playchess.com"]
[Source "ChessBase"]
[SourceQuality "1"]
[TimeControl "40/5400+30:1800+30"]

1. e4 {[%emt 0:05:03]} c5 {[%emt 0:00:00]} 2. Nf3 {[%emt 0:00:05]} d6 {[%emt 0:00:00]} 3. d4 {[%emt 0:00:30]} cxd4 {[%emt 0:00:00]} 4. Nxd4 {[%emt 0:00:03]} Nf6 {[%emt 0:00:00]} 5. Nc3 {[%emt 0:00:03]} a6 {[%emt 0:00:00]} 6. h3 {[%emt 0:00:16]} e6 {[%emt 0:00:16]} 7. g4 {[%emt 0:00:26]} h6 {[%emt 0:00:17]} 8. Bg2 {[%emt 0:00:47]} Be7 {[%emt 0:00:08]} 9. O-O {[%emt 0:02:50]} g5 {[%emt 0:09:58]} 10. Nde2 {[%emt 0:11:51]} Nc6 {[%emt 0:02:33]} 11. Be3 {[%emt 0:04:21]} Ne5 {[%emt 0:01:02]} 12. Na4 {[%emt 0:03:57]} Nc4 {[%emt 0:09:05]} 13. Bd4 {[%emt 0:03:16]} e5 {[%emt 0:00:33]} 14. b3 {[%emt 0:00:40]} exd4 {[%emt 0:02:23]} 15. bxc4 {[%emt 0:00:05]} Qa5 {[%emt 0:05:31]} 16. Nb2 {[%emt 0:07:24]} h5 {[%emt 0:01:46]} 17. Qxd4 {[%emt 0:01:33]} hxg4 {[%emt 0:00:30]} 18. hxg4 {[%emt 0:00:07]} Bxg4 {[%emt 0:06:05]} 19. Ng3 {[%emt 0:01:20]} Qe5 {[%emt 0:15:47]} 20. Qxe5 {[%emt 0:03:16]} dxe5 {[%emt 0:00:03]} 21. Nd3 {[%emt 0:00:14]} Nd7 {[%emt 0:01:02]} 22. Nf5 {[%emt 0:02:07]} Rc8 {[%emt 0:03:29]} 23. Rab1 {[%emt 0:07:52]} b6 {[%emt 0:03:54]} 24. Rfe1 {[%emt 0:00:45]} Rxc4 {[%emt 0:00:30]} 25. Ne3 {[%emt 0:00:21]} Be6 {[%emt 0:00:43]} 26. Nxc4 {[%emt 0:00:07]} Bxc4 {[%emt 0:00:02]} 27. a4 {[%emt 0:03:49]} Bxd3 {[%emt 0:09:44]} 28. cxd3 {[%emt 0:00:06]} a5 {[%emt 0:00:05]} 29. d4 {[%emt 0:05:15]} exd4 {[%emt 0:00:14]} 30. e5 {[%emt 0:00:19]} Rh6 {[%emt 0:03:34]} 31. Bd5 {[%emt 0:01:55]} Bb4 {[%emt 0:05:56]} 32. Re4 {[%emt 0:28:12]} d3 {[%emt 0:11:38]} 33. Rg4 {[%emt 0:00:20]} Nxe5 {[%emt 0:00:47]} 34. Rxg5 {[%emt 0:00:09]} f6 {[%emt 0:04:22]} 35. Rg7 {[%emt 0:00:16]} Rg6+ {[%emt 0:01:59]} 36. Rxg6 {[%emt 0:00:04]} Nxg6 {[%emt 0:00:01]} 37. Bb3 {[%emt 0:05:38]} Nf4 {[%emt 0:01:21]} 38. Kf1 {[%emt 0:00:30]} d2 {[%emt 0:02:04]} 39. Bd1 {[%emt 0:02:37]} Nd5 {[%emt 0:01:08]} 40. Rb2 {[%emt 0:00:02]} Ke7 {[%emt 0:00:39]} 41. Bf3 {[%emt 0:13:03]} Kd6 {[%emt 0:05:23]} 42. Rc2 {[%emt 0:03:02]} Ke5 {[%emt 0:01:10]} 43. Rc8 {[%emt 0:05:06]} Kf4 {[%emt 0:08:32]} 44. Bd1 {[%emt 0:05:35]} Nc3 {[%emt 0:00:35]} 45. Rxc3 {[%emt 0:00:33]} Bxc3 {[%emt 0:00:02]} 46. Ke2 {[%emt 0:00:09]} Ke4 {[%emt 0:00:50]} 47. Bb3 {[%emt 0:01:30]} Kd4 {[%emt 0:07:26]} 48. Bf7 {[%emt 0:01:30]} Bb4 {[%emt 0:01:36]} 49. Be8 {[%emt 0:00:23]} Kc3 {[%emt 0:00:11]} 50. Kd1 {[%emt 0:00:16]} Bc5 {[%emt 0:00:07]} 51. f4 {[%emt 0:02:45]} Be3 {[%emt 0:05:01]} 52. f5 {[%emt 0:00:05]} Kd4 {[%emt 0:00:12]} 53. Bd7 {[%emt 0:00:23]} Ke4 {[%emt 0:00:23]} 54. Ke2 {[%emt 0:01:19]} Bf4 {[%emt 0:00:57]} 55. Kd1 {[%emt 0:00:10]} b5 {[%emt 0:02:53]} 56. axb5 {[%emt 0:00:04]} a4 {[%emt 0:00:02]} 57. Ke2 {[%emt 0:03:19]} a3 {[%emt 0:01:06]} 58. Be6 {[%emt 0:00:10]} Kd4 {[%emt 0:00:03]} 59. b6 {[%emt 0:01:04]} Kc3 {[%emt 0:00:03]} 60. b7 {[%emt 0:00:18]} Kb2 {[%emt 0:00:18]} 61. b8=Q+ {[%emt 0:00:21]} Bxb8 {[%emt 0:00:03]} 62. Kxd2 {[%emt 0:00:07]} a2 {[%emt 0:00:02]} 63. Bxa2 {[%emt 0:00:06]} Kxa2 {[%emt 0:00:02]} 0-1

[Event "106th British-ch 2019"]
[Site "Torquay"]
[Date "2019.08.01"]
[Round "6.6"]
[White "Pert, Nicholas"]
[Black "Toma, Katarzyna"]
[Result "1-0"]
[ECO "D77"]
[WhiteElo "2563"]
[BlackElo "2229"]
[Annotator "ChessBase"]
[PlyCount "81"]
[EventDate "2019.07.27"]
[EventType "swiss"]
[EventCountry "GBR"]
[SourceTitle "playchess.com"]
[Source "ChessBase"]
[SourceQuality "1"]
[TimeControl "40/5400+30:1800+30"]

1. d4 {[%emt 0:02:35]} Nf6 {[%emt 0:00:00]} 2. Nf3 {[%emt 0:00:05]} g6 {[%emt 0:00:00]} 3. g3 {[%emt 0:00:12]} Bg7 {[%emt 0:00:00]} 4. Bg2 {[%emt 0:00:07]} O-O {[%emt 0:00:30]} 5. O-O {[%emt 0:00:05]} d5 {[%emt 0:00:09]} 6. c4 {[%emt 0:00:21]} dxc4 {[%emt 0:00:12]} 7. Na3 {[%emt 0:00:34]} Nc6 {[%emt 0:00:47]} 8. Nxc4 {[%emt 0:00:09]} Be6 {[%emt 0:00:15]} 9. b3 {[%emt 0:00:24]} Bd5 {[%emt 0:01:51]} 10. Bb2 {[%emt 0:00:42]} a5 {[%emt 0:00:19]} 11. Ne3 {[%emt 0:00:26]} Be4 {[%emt 0:04:36]} 12. a3 {[%emt 0:00:07]} Qc8 {[%emt 0:05:09]} 13. Nc4 {[%emt 0:00:18]} Rd8 {[%emt 0:02:24]} 14. e3 {[%emt 0:00:45]} Bd5 {[%emt 0:10:14]} 15. Rc1 {[%emt 0:00:35]} h6 {[%emt 0:02:57]} 16. Qe2 {[%emt 0:01:27]} Qe6 {[%emt 0:01:32]} 17. Rfd1 {[%emt 0:00:40]} a4 {[%emt 0:03:32]} 18. b4 {[%emt 0:01:08]} Na7 {[%emt 0:00:31]} 19. Nce5 {[%emt 0:08:40]} Rac8 {[%emt 0:01:52]} 20. Qf1 {[%emt 0:08:33]} g5 {[%emt 0:05:24]} 21. h4 {[%emt 0:03:59]} Qf5 {[%emt 0:03:00]} 22. hxg5 {[%emt 0:11:20]} hxg5 {[%emt 0:00:05]} 23. Nd2 {[%emt 0:00:19]} Ne4 {[%emt 0:12:42]} 24. Nxe4 {[%emt 0:05:14]} Bxe4 {[%emt 0:00:49]} 25. f3 {[%emt 0:28:39]} Bxe5 {[%emt 0:06:01]} 26. dxe5 {[%emt 0:00:04]} Bc6 {[%emt 0:08:08]} 27. e4 {[%emt 0:00:44]} Qg6 {[%emt 0:00:52]} 28. e6 {[%emt 0:02:45]} fxe6 {[%emt 0:03:31]} 29. Rc5 {[%emt 0:01:09]} b6 {[%emt 0:03:36]} 30. Re5 {[%emt 0:00:40]} Rd6 {[%emt 0:03:37]} 31. Bc1 {[%emt 0:05:34]} Kf8 {[%emt 0:01:53]} 32. Rxg5 {[%emt 0:00:11]} Qh7 {[%emt 0:00:25]} 33. Bf4 {[%emt 0:01:39]} Bb5 {[%emt 0:06:47]} 34. Qe1 {[%emt 0:00:11]} Rxd1 {[%emt 0:02:33]} 35. Qxd1 {[%emt 0:00:02]} Ke8 {[%emt 0:00:17]} 36. Qc1 {[%emt 0:04:11]} Bd7 {[%emt 0:05:05]} 37. Be5 {[%emt 0:01:18]} Nb5 {[%emt 0:06:00]} 38. Rg7 {[%emt 0:01:31]} Qh5 {[%emt 0:00:15]} 39. Rg8+ {[%emt 0:00:38]} Kf7 {[%emt 0:00:07]} 40. Rg5 {[%emt 0:00:11]} Qh7 {[%emt 0:01:16]} 41. Qf4+ {[%emt 0:30:13]} 1-0

[Event "106th British-ch 2019"]
[Site "Torquay"]
[Date "2019.08.01"]
[Round "6.7"]
[White "Emms, John M"]
[Black "Ashton, Adam G"]
[Result "1-0"]
[ECO "C77"]
[WhiteElo "2481"]
[BlackElo "2323"]
[Annotator "ChessBase"]
[PlyCount "77"]
[EventDate "2019.07.27"]
[EventType "swiss"]
[EventCountry "GBR"]
[SourceTitle "playchess.com"]
[Source "ChessBase"]
[SourceQuality "1"]
[TimeControl "40/5400+30:1800+30"]

1. e4 {[%emt 0:00:00]} e5 {[%emt 0:01:34]} 2. Nf3 {[%emt 0:00:00]} Nc6 {[%emt 0:00:04]} 3. Bb5 {[%emt 0:00:08]} a6 {[%emt 0:00:04]} 4. Ba4 {[%emt 0:00:06]} Nf6 {[%emt 0:00:14]} 5. d3 {[%emt 0:00:20]} d6 {[%emt 0:00:50]} 6. c3 {[%emt 0:00:40]} g6 {[%emt 0:00:18]} 7. O-O {[%emt 0:00:36]} Bg7 {[%emt 0:00:20]} 8. h3 {[%emt 0:01:29]} O-O {[%emt 0:00:10]} 9. Re1 {[%emt 0:00:11]} Re8 {[%emt 0:01:50]} 10. Nbd2 {[%emt 0:09:21]} h6 {[%emt 0:06:16]} 11. d4 {[%emt 0:15:48]} b5 {[%emt 0:05:24]} 12. Bc2 {[%emt 0:00:05]} Bb7 {[%emt 0:31:25]} 13. d5 {[%emt 0:05:39]} Nb8 {[%emt 0:02:57]} 14. a4 {[%emt 0:06:12]} c6 {[%emt 0:02:27]} 15. dxc6 {[%emt 0:00:32]} Bxc6 {[%emt 0:03:01]} 16. axb5 {[%emt 0:15:07]} axb5 {[%emt 0:00:15]} 17. Rxa8 {[%emt 0:00:05]} Bxa8 {[%emt 0:00:04]} 18. Qe2 {[%emt 0:09:43]} Bc6 {[%emt 0:00:42]} 19. Bd3 {[%emt 0:02:51]} Qb6 {[%emt 0:00:33]} 20. Nb3 {[%emt 0:04:57]} Nbd7 {[%emt 0:11:53]} 21. Be3 {[%emt 0:02:59]} Qc7 {[%emt 0:00:51]} 22. Nfd2 {[%emt 0:02:04]} Rb8 {[%emt 0:02:34]} 23. Ra1 {[%emt 0:02:40]} d5 {[%emt 0:03:29]} 24. Ra7 {[%emt 0:03:19]} Qc8 {[%emt 0:00:27]} 25. exd5 {[%emt 0:01:55]} Nxd5 {[%emt 0:01:03]} 26. Na5 {[%emt 0:01:30]} f5 {[%emt 0:07:02]} 27. Nxc6 {[%emt 0:06:59]} Qxc6 {[%emt 0:00:17]} 28. Nb3 {[%emt 0:01:18]} e4 {[%emt 0:03:35]} 29. Bb1 {[%emt 0:00:55]} Nxe3 {[%emt 0:01:04]} 30. Qxe3 {[%emt 0:00:14]} Ra8 {[%emt 0:09:00]} 31. Na5 {[%emt 0:02:50]} Qd5 {[%emt 0:02:33]} 32. Ba2 {[%emt 0:00:23]} Qxa2 {[%emt 0:00:01]} 33. Rxa8+ {[%emt 0:00:04]} Kh7 {[%emt 0:00:06]} 34. Ra7 {[%emt 0:00:37]} Qd5 {[%emt 0:00:40]} 35. Nb3 {[%emt 0:02:01]} Qd1+ {[%emt 0:03:04]} 36. Kh2 {[%emt 0:00:06]} Be5+ {[%emt 0:01:08]} 37. g3 {[%emt 0:00:08]} f4 {[%emt 0:00:41]} 38. gxf4 {[%emt 0:01:22]} Bb8 {[%emt 0:00:02]} 39. Rb7 {[%emt 0:00:37]} 1-0